fUST/lending_fUST_20250603
["ID","MTS","AMOUNT","RATE_DAILY","PERIOD"]
[363956749,1748946643000,-440.0,0.00016712,2]
[363956751,1748946643009,-440.0,0.00016712,2]
[363956753,1748946643019,-410.0,0.00016712,2]
[363956756,1748946643029,-440.0,0.00016712,2]
[363956758,1748946643038,-440.0,0.00016712,2]
[363956760,1748946643048,-440.0,0.00016712,2]
[363956762,1748946643057,-637.93,0.00016712,2]
[363956764,1748946643067,-655.59,0.00016712,2]
[363956766,1748946643077,-738.86,0.00016712,2]
[363956768,1748946643087,-239.76687433,0.00016712,2]
[363956770,1748946643096,-440.0,0.00016712,2]
[363956772,1748946643106,-440.0,0.00016712,2]
[363956774,1748946643116,-410.8842493,0.00016712,2]
[363956776,1748946643125,-440.0,0.00016712,2]
[363956778,1748946643134,-440.0,0.00016712,2]
[363956780,1748946643144,-440.0,0.00016712,2]
[363956782,1748946643153,-440.0,0.00016712,2]
[363956784,1748946643163,-440.0,0.00016712,2]
[363956787,1748946643173,-921.6,0.00016712,2]
[363956789,1748946643182,-440.0,0.00016712,2]
[363956792,1748946643192,-440.0,0.00016712,2]
[363956794,1748946643201,-420.0,0.00016712,2]
[363956796,1748946643211,-440.0,0.00016712,2]
[363956798,1748946643221,-648.26,0.00016712,2]
[363956801,1748946643230,-440.0,0.00016712,2]
[363956803,1748946643240,-421.28892235,0.00016712,2]
[363956806,1748946643249,-440.0,0.00016712,2]
[363956810,1748946643258,-440.0,0.00016712,2]
[363956812,1748946643268,-812.28,0.00016712,2]
[363956814,1748946643277,-390.81391833,0.00016712,2]
[363956816,1748946643287,-1085.16,0.00016712,2]
[363956818,1748946643297,-440.0,0.00016712,2]
[363956820,1748946643305,-420.0,0.00016712,2]
[363956822,1748946643316,-440.0,0.00016712,2]
[363956824,1748946643326,-440.0,0.00016712,2]
[363956826,1748946643335,-440.0,0.00016712,2]
[363956828,1748946643344,-440.0,0.00016712,2]
[363956830,1748946643354,-427.06822049,0.00016712,2]
[363956832,1748946643364,-440.0,0.00016712,2]
[363956834,1748946643374,-440.0,0.00016712,2]
[363956836,1748946643384,-440.0,0.00016712,2]
[363956838,1748946643394,-440.0,0.00016712,2]
[363956841,1748946643403,-440.0,0.00016712,2]
[363956843,1748946643413,-440.0,0.00016712,2]
[363956845,1748946643423,-440.0,0.00016712,2]
[363956847,1748946643432,-440.0,0.00016712,2]
[363956849,1748946643443,-440.0,0.00016712,2]
[363956852,1748946643452,-420.0,0.00016712,2]
[363956855,1748946643461,-430.0,0.00016712,2]
[363956857,1748946643470,-440.0,0.00016712,2]
[363956859,1748946643480,-440.0,0.00016712,2]
[363956861,1748946643489,-1793.76,0.00016712,2]
[363956863,1748946643499,-969.47,0.00016712,2]
[363956865,1748946643512,-530.0,0.00016712,2]
[363956866,1748946643522,-451.32547535,0.00016712,2]
[363956868,1748946643531,-440.0,0.00016712,2]
[363956870,1748946643541,-440.0,0.00016712,2]
[363956872,1748946643551,-162.6384244,0.00016758,2]
[363956874,1748946643561,-153.7318734,0.000168,2]
[363956876,1748946643570,-151.0,0.00016822,2]
[363956878,1748946643579,-151.0,0.00016822,2]
[363956880,1748946643592,-289.06805482,0.00016822,2]
[363956882,1748946643602,-500.0,0.00016822,2]
[363956884,1748946643612,-151.0,0.00016822,2]
[363956886,1748946643621,-151.0,0.00016822,2]
[363956888,1748946643630,-500.0,0.00016822,2]
[363956890,1748946643640,-198.0,0.00016849,2]
[363956892,1748946643649,-502.68086384,0.00016849,2]
[363956894,1748946643659,-151.0,0.00016849,2]
[363956896,1748946643668,-503.5585077,0.00016849,2]
[363956898,1748946643677,-151.0,0.00016877,2]
[363956900,1748946643686,-151.0,0.00016904,2]
[363956902,1748946643696,-245.0,0.00016932,2]
[363956904,1748946643705,-879.83,0.00016985,2]
[363956906,1748946643715,-879.83,0.00016985,2]
[363956908,1748946643724,-417.0,0.00016986,2]
[363956910,1748946643734,-440.0,0.00016986,2]
[363956912,1748946643744,-440.0,0.00016986,2]
[363956914,1748946643753,-420.0,0.00016986,2]
[363956916,1748946643763,-440.0,0.00016986,2]
[363956918,1748946643772,-440.0,0.00016986,2]
[363956920,1748946643781,-440.0,0.00016986,2]
[363956922,1748946643791,-440.0,0.00016986,2]
[363956924,1748946643800,-440.0,0.00016986,2]
[363956926,1748946643810,-440.0,0.00016986,2]
[363956928,1748946643819,-440.0,0.00016986,2]
[363956930,1748946643829,-440.0,0.00016986,2]
[363956932,1748946643838,-440.0,0.00016986,2]
[363956934,1748946643847,-430.0,0.00016986,2]
[363956936,1748946643857,-440.0,0.00016986,2]
[363956938,1748946643866,-440.0,0.00016986,2]
[363956940,1748946643881,-400.0,0.00016986,2]
[363956942,1748946643891,-440.0,0.00016986,2]
[363956944,1748946643900,-440.0,0.00016986,2]
[363956946,1748946643909,-440.0,0.00016986,2]
[363956948,1748946643918,-410.0,0.00016986,2]
[363956951,1748946643928,-440.0,0.00016986,2]
[363956953,1748946643937,-440.0,0.00016986,2]
[363956955,1748946643946,-440.0,0.00016986,2]
[363956957,1748946643956,-420.0,0.00016986,2]
[363956959,1748946643965,-440.0,0.00016986,2]
[363956961,1748946643974,-495.98946156,0.00016986,2]
[363956963,1748946643984,-440.0,0.00016986,2]
[363956964,1748946643993,-510.0,0.00016986,2]
[363956967,1748946644002,-410.0,0.00016986,2]
[363956969,1748946644012,-440.0,0.00016986,2]
[363956970,1748946644021,-530.0,0.00016986,2]
[363956972,1748946644030,-440.0,0.00016986,2]
[363956975,1748946644043,-440.0,0.00016986,2]
[363956977,1748946644052,-436.06492943,0.00016986,2]
[363956979,1748946644061,-440.0,0.00016986,2]
[363956981,1748946644070,-440.0,0.00016986,2]
[363956983,1748946644080,-440.0,0.00016986,2]
[363956985,1748946644089,-440.0,0.00016986,2]
[363956987,1748946644099,-15951.04,0.00016986,2]
[363956989,1748946644108,-430.0,0.00016986,2]
[363956991,1748946644117,-440.0,0.00016986,2]
[363956993,1748946644127,-440.0,0.00016986,2]
[363956995,1748946644137,-440.0,0.00016986,2]
[363956997,1748946644147,-440.0,0.00016986,2]
[363956999,1748946644157,-1331.65,0.00016986,2]
[363957001,1748946644166,-440.0,0.00016986,2]
[363957003,1748946644176,-440.0,0.00016986,2]
[363957005,1748946644185,-440.0,0.00016986,2]
[363957007,1748946644196,-487.26,0.00016986,2]
[363957009,1748946644206,-1206.48,0.00016986,2]
[363957011,1748946644216,-440.0,0.00016986,2]
[363957013,1748946644225,-440.0,0.00016986,2]
[363957015,1748946644235,-512.8,0.00016986,2]
[363957017,1748946644245,-4509.62,0.00016986,2]
[363957019,1748946644253,-253.79,0.00016986,2]
[363957020,1748946644263,-440.0,0.00016986,2]
[363957022,1748946644272,-440.0,0.00016986,2]
[363957025,1748946644282,-440.0,0.00016986,2]
[363957026,1748946644291,-420.0,0.00016986,2]
[363957029,1748946644301,-440.0,0.00016986,2]
[363957031,1748946644311,-767.81,0.00016986,2]
[363957033,1748946644320,-2287.16,0.00016986,2]
[363957035,1748946644331,-1889.79,0.00016986,2]
[363957048,1748946644438,-440.0,0.00016986,2]
[363957051,1748946644464,-1333.43,0.00016986,2]
[363957053,1748946644474,-2420.97,0.00016986,2]
[363957055,1748946644484,-1785.97,0.00016986,2]
[363957057,1748946644494,-410.0,0.00016986,2]
[363957059,1748946644504,-490.58,0.00016986,2]
[363957061,1748946644517,-442.15,0.00016986,2]
[363957063,1748946644526,-440.0,0.00016986,2]
[363957065,1748946644536,-440.0,0.00016986,2]
[363957067,1748946644546,-430.0,0.00016986,2]
[363957069,1748946644557,-440.0,0.00016986,2]
[363957072,1748946644566,-440.0,0.00016986,2]
[363957074,1748946644576,-637.93,0.00016986,2]
[363957075,1748946644587,-655.59,0.00016986,2]
[363957078,1748946644597,-738.86,0.00016986,2]
[363957080,1748946644606,-440.0,0.00016986,2]
[363957082,1748946644616,-400.0,0.00016986,2]
[363957084,1748946644625,-430.0,0.00016986,2]
[363957086,1748946644634,-440.0,0.00016986,2]
[363957088,1748946644643,-440.0,0.00016986,2]
[363957090,1748946644653,-440.0,0.00016986,2]
[363957092,1748946644662,-440.0,0.00016986,2]
[363957094,1748946644671,-921.6,0.00016986,2]
[363957096,1748946644681,-244.96,0.00016986,2]
[363957098,1748946644691,-420.0,0.00016986,2]
[363957100,1748946644700,-420.0,0.00016986,2]
[363957101,1748946644709,-648.26,0.00016986,2]
[363957103,1748946644719,-440.0,0.00016986,2]
[363957105,1748946644728,-411.28351299,0.00016986,2]
[363957107,1748946644738,-410.0,0.00016986,2]
[363957109,1748946644747,-812.28,0.00016986,2]
[363957111,1748946644756,-1085.16,0.00016986,2]
[363957113,1748946644765,-440.0,0.00016986,2]
[363957115,1748946644776,-440.0,0.00016986,2]
[363957117,1748946644785,-440.0,0.00016986,2]
[363957119,1748946644795,-440.0,0.00016986,2]
[363957121,1748946644804,-440.0,0.00016986,2]
[363957123,1748946644814,-440.0,0.00016986,2]
[363957125,1748946644823,-440.0,0.00016986,2]
[363957127,1748946644835,-440.0,0.00016986,2]
[363957129,1748946644845,-410.0,0.00016986,2]
[363957131,1748946644854,-400.62505349,0.00016986,2]
[363957133,1748946644864,-440.0,0.00016986,2]
[363957135,1748946644873,-410.0,0.00016986,2]
[363957137,1748946644883,-440.0,0.00016986,2]
[363957139,1748946644892,-440.0,0.00016986,2]
[363957141,1748946644901,-440.0,0.00016986,2]
[363957143,1748946644911,-1793.76,0.00016986,2]
[363957145,1748946644921,-969.47,0.00016986,2]
[363957147,1748946644931,-440.0,0.00016986,2]
[363957149,1748946644940,-440.0,0.00016986,2]
[363957151,1748946644950,-501.75675153,0.00017026,2]
[363957153,1748946644959,-500.0,0.00017036,2]
[363957155,1748946644969,-506.73672877,0.00017126,2]
[363957157,1748946644979,-443.46684055,0.00017126,2]
[363957159,1748946644988,-500.0,0.00017167,2]
[363957161,1748946644998,-500.0,0.00017235,2]
[363957164,1748946645008,-879.83,0.00017259,2]
[363957165,1748946645017,-879.83,0.00017259,2]
[363957167,1748946645027,-440.0,0.0001726,2]
[363957169,1748946645036,-370.0,0.0001726,2]
[363957172,1748946645046,-440.0,0.0001726,2]
[363957173,1748946645057,-440.0,0.0001726,2]
[363957176,1748946645067,-440.0,0.0001726,2]
[363957178,1748946645076,-420.0,0.0001726,2]
[363957180,1748946645086,-440.0,0.0001726,2]
[363957182,1748946645096,-272.05,0.0001726,2]
[363957184,1748946645105,-440.0,0.0001726,2]
[363957186,1748946645115,-440.0,0.0001726,2]
[363957188,1748946645124,-440.0,0.0001726,2]
[363957190,1748946645134,-440.0,0.0001726,2]
[363957191,1748946645144,-170.0,0.0001726,2]
[363957194,1748946645155,-440.0,0.0001726,2]
[363957196,1748946645164,-440.0,0.0001726,2]
[363957197,1748946645173,-440.0,0.0001726,2]
[363957199,1748946645183,-440.0,0.0001726,2]
[363957202,1748946645194,-320.0,0.0001726,2]
[363957204,1748946645204,-440.0,0.0001726,2]
[363957206,1748946645213,-440.0,0.0001726,2]
[363957208,1748946645224,-440.0,0.0001726,2]
[363957210,1748946645233,-440.0,0.0001726,2]
[363957212,1748946645243,-440.0,0.0001726,2]
[363957214,1748946645252,-440.0,0.0001726,2]
[363957215,1748946645262,-390.0,0.0001726,2]
[363957216,1748946645271,-440.0,0.0001726,2]
[363957218,1748946645281,-400.0,0.0001726,2]
[363957220,1748946645291,-440.0,0.0001726,2]
[363957222,1748946645301,-15951.04,0.0001726,2]
[363957224,1748946645310,-440.0,0.0001726,2]
[363957226,1748946645319,-440.0,0.0001726,2]
[363957228,1748946645329,-440.0,0.0001726,2]
[363957230,1748946645339,-410.0,0.0001726,2]
[363957232,1748946645348,-1331.65,0.0001726,2]
[363957234,1748946645357,-440.0,0.0001726,2]
[363957236,1748946645367,-440.0,0.0001726,2]
[363957238,1748946645377,-440.0,0.0001726,2]
[363957240,1748946645386,-487.26,0.0001726,2]
[363957242,1748946645395,-1206.48,0.0001726,2]
[363957244,1748946645405,-440.0,0.0001726,2]
[363957246,1748946645414,-174.14129115,0.0001726,2]
[363957248,1748946645423,-512.8,0.0001726,2]
[363957250,1748946645432,-4509.62,0.0001726,2]
[363957252,1748946645442,-440.0,0.0001726,2]
[363957254,1748946645450,-440.0,0.0001726,2]
[363957256,1748946645460,-411.95562716,0.0001726,2]
[363957258,1748946645469,-409.08,0.0001726,2]
[363957260,1748946645478,-767.81,0.0001726,2]
[363957262,1748946645488,-2287.16,0.0001726,2]
[363957264,1748946645498,-1889.79,0.0001726,2]
[363957266,1748946645509,-430.0,0.0001726,2]
[363957268,1748946645522,-1333.43,0.0001726,2]
[363957270,1748946645532,-2420.97,0.0001726,2]
[363957272,1748946645542,-1785.97,0.0001726,2]
[363957274,1748946645551,-490.58,0.0001726,2]
[363957276,1748946645562,-442.15,0.0001726,2]
[363957278,1748946645572,-440.0,0.0001726,2]
[363957280,1748946645581,-440.0,0.0001726,2]
[363957282,1748946645593,-440.0,0.0001726,2]
[363957284,1748946645602,-440.0,0.0001726,2]
[363957286,1748946645611,-637.93,0.0001726,2]
[363957288,1748946645620,-655.59,0.0001726,2]
[363957290,1748946645629,-738.86,0.0001726,2]
[363957292,1748946645638,-440.0,0.0001726,2]
[363957294,1748946645648,-440.0,0.0001726,2]
[363957296,1748946645657,-440.0,0.0001726,2]
[363957298,1748946645667,-440.0,0.0001726,2]
[363957299,1748946645676,-440.0,0.0001726,2]
[363957300,1748946645685,-921.6,0.0001726,2]
[363957301,1748946645695,-648.26,0.0001726,2]
[363957302,1748946645703,-430.0,0.0001726,2]
[363957303,1748946645712,-812.28,0.0001726,2]
[363957304,1748946645721,-1085.16,0.0001726,2]
[363957305,1748946645730,-440.0,0.0001726,2]
[363957306,1748946645739,-430.0,0.0001726,2]
[363957307,1748946645748,-440.0,0.0001726,2]
[363957308,1748946645757,-440.0,0.0001726,2]
[363957309,1748946645766,-440.0,0.0001726,2]
[363957310,1748946645775,-440.0,0.0001726,2]
[363957311,1748946645784,-379.10000069,0.0001726,2]
[363957312,1748946645793,-440.0,0.0001726,2]
[363957313,1748946645803,-440.0,0.0001726,2]
[363957314,1748946645812,-440.0,0.0001726,2]
[363957315,1748946645821,-440.0,0.0001726,2]
[363957316,1748946645830,-440.0,0.0001726,2]
[363957317,1748946645839,-1793.76,0.0001726,2]
[363957318,1748946645848,-969.47,0.0001726,2]
[363957319,1748946645857,-440.0,0.0001726,2]
[363957320,1748946645866,-440.0,0.0001726,2]
[363957321,1748946645879,-305.0,0.000175,2]
[363957322,1748946645888,-879.83,0.00017533,2]
[363957323,1748946645897,-160.0,0.00017533,2]
[363957324,1748946645907,-440.0,0.00017534,2]
[363957325,1748946645916,-440.0,0.00017534,2]
[363957326,1748946645925,-430.0,0.00017534,2]
[363957327,1748946645934,-506.87,0.00017534,2]
[363957329,1748946645944,-410.0,0.00017534,2]
[363957331,1748946645954,-440.0,0.00017534,2]
[363957333,1748946645963,-440.0,0.00017534,2]
[363957335,1748946645972,-440.0,0.00017534,2]
[363957337,1748946645981,-440.0,0.00017534,2]
[363957339,1748946645991,-440.0,0.00017534,2]
[363957341,1748946645999,-360.0,0.00017534,2]
[363957343,1748946646007,-350.0,0.00017534,2]
[363957345,1748946646016,-440.0,0.00017534,2]
[363957347,1748946646025,-440.0,0.00017534,2]
[363957349,1748946646034,-440.0,0.00017534,2]
[363957351,1748946646043,-440.0,0.00017534,2]
[363957353,1748946646052,-440.0,0.00017534,2]
[363957355,1748946646062,-440.0,0.00017534,2]
[363957357,1748946646072,-440.0,0.00017534,2]
[363957359,1748946646081,-440.0,0.00017534,2]
[363957361,1748946646090,-430.0,0.00017534,2]
[363957363,1748946646100,-15951.04,0.00017534,2]
[363957364,1748946646109,-440.0,0.00017534,2]
[363957366,1748946646118,-410.0,0.00017534,2]
[363957368,1748946646128,-440.0,0.00017534,2]
[363957370,1748946646138,-1331.65,0.00017534,2]
[363957372,1748946646148,-440.0,0.00017534,2]
[363957374,1748946646157,-440.0,0.00017534,2]
[363957376,1748946646167,-440.0,0.00017534,2]
[363957378,1748946646176,-487.26,0.00017534,2]
[363957380,1748946646186,-1206.48,0.00017534,2]
[363957382,1748946646196,-440.0,0.00017534,2]
[363957384,1748946646206,-512.8,0.00017534,2]
[363957386,1748946646216,-4509.62,0.00017534,2]
[363957388,1748946646226,-401.29,0.00017534,2]
[363957390,1748946646235,-440.0,0.00017534,2]
[363957392,1748946646245,-767.81,0.00017534,2]
[363957394,1748946646255,-2287.16,0.00017534,2]
[363957396,1748946646263,-1889.79,0.00017534,2]
[363957398,1748946646273,-1333.43,0.00017534,2]
[363957400,1748946646283,-2420.97,0.00017534,2]
[363957402,1748946646293,-1785.97,0.00017534,2]
[363957404,1748946646303,-490.58,0.00017534,2]
[363957406,1748946646313,-442.15,0.00017534,2]
[363957408,1748946646323,-440.0,0.00017534,2]
[363957410,1748946646331,-440.0,0.00017534,2]
[363957411,1748946646340,-440.0,0.00017534,2]
[363957413,1748946646350,-440.0,0.00017534,2]
[363957415,1748946646359,-637.93,0.00017534,2]
[363957417,1748946646369,-655.59,0.00017534,2]
[363957419,1748946646378,-738.86,0.00017534,2]
[363957421,1748946646387,-220.66971869,0.00017534,2]
[363957423,1748946646397,-440.0,0.00017534,2]
[363957425,1748946646406,-440.0,0.00017534,2]
[363957427,1748946646416,-350.0,0.00017534,2]
[363957429,1748946646426,-440.0,0.00017534,2]
[363957431,1748946646436,-921.6,0.00017534,2]
[363957433,1748946646447,-648.26,0.00017534,2]
[363957435,1748946646456,-812.28,0.00017534,2]
[363957437,1748946646466,-1085.16,0.00017534,2]
[363957439,1748946646475,-440.0,0.00017534,2]
[363957441,1748946646484,-440.0,0.00017534,2]
[363957443,1748946646494,-440.0,0.00017534,2]
[363957445,1748946646503,-440.0,0.00017534,2]
[363957447,1748946646515,-440.0,0.00017534,2]
[363957449,1748946646525,-440.0,0.00017534,2]
[363957451,1748946646534,-440.0,0.00017534,2]
[363957453,1748946646544,-440.0,0.00017534,2]
[363957455,1748946646555,-440.0,0.00017534,2]
[363957457,1748946646565,-440.0,0.00017534,2]
[363957459,1748946646574,-1793.76,0.00017534,2]
[363957461,1748946646583,-969.47,0.00017534,2]
[363957463,1748946646594,-440.0,0.00017534,2]
[363957465,1748946646603,-440.0,0.00017534,2]
[363957466,1748946646613,-1000.0,0.00017584,2]
[363957469,1748946646623,-503.06437526,0.00017715,2]
[363957471,1748946646633,-879.83,0.00017723,2]
[363957473,1748946646643,-500.0,0.00017786,2]
[363957475,1748946646653,-879.83,0.00017807,2]
[363957477,1748946646663,-879.83,0.00017807,2]
[363957479,1748946646673,-440.0,0.00017808,2]
[363957481,1748946646683,-440.0,0.00017808,2]
[363957482,1748946646693,-440.0,0.00017808,2]
[363957484,1748946646703,-440.0,0.00017808,2]
[363957486,1748946646713,-440.0,0.00017808,2]
[363957488,1748946646722,-440.0,0.00017808,2]
[363957490,1748946646732,-440.0,0.00017808,2]
[363957492,1748946646741,-440.0,0.00017808,2]
[363957494,1748946646751,-440.0,0.00017808,2]
[363957496,1748946646761,-440.0,0.00017808,2]
[363957498,1748946646770,-440.0,0.00017808,2]
[363957500,1748946646779,-440.0,0.00017808,2]
[363957502,1748946646791,-440.0,0.00017808,2]
[363957504,1748946646800,-440.0,0.00017808,2]
[363957506,1748946646809,-440.0,0.00017808,2]
[363957508,1748946646819,-15951.04,0.00017808,2]
[363957510,1748946646829,-440.0,0.00017808,2]
[363957512,1748946646838,-440.0,0.00017808,2]
[363957514,1748946646848,-1331.65,0.00017808,2]
[363957516,1748946646857,-499.37085528,0.00017808,2]
[363957518,1748946646867,-324.87097002,0.00017808,2]
[363957520,1748946646877,-440.0,0.00017808,2]
[363957522,1748946646886,-487.26,0.00017808,2]
[363957524,1748946646897,-1206.48,0.00017808,2]
[363957526,1748946646907,-440.0,0.00017808,2]
[363957528,1748946646917,-512.8,0.00017808,2]
[363957530,1748946646926,-4509.62,0.00017808,2]
[363957543,1748946647039,-440.0,0.00017808,2]
[363957545,1748946647050,-767.81,0.00017808,2]
[363957547,1748946647059,-2287.16,0.00017808,2]
[363957549,1748946647069,-1889.79,0.00017808,2]
[363957551,1748946647078,-1333.43,0.00017808,2]
[363957553,1748946647087,-2420.97,0.00017808,2]
[363957555,1748946647097,-1785.97,0.00017808,2]
[363957557,1748946647106,-490.58,0.00017808,2]
[363957559,1748946647116,-442.15,0.00017808,2]
[363957561,1748946647126,-289.34168232,0.00017808,2]
[363957563,1748946647135,-440.0,0.00017808,2]
[363957565,1748946647144,-440.0,0.00017808,2]
[363957567,1748946647154,-440.0,0.00017808,2]
[363957569,1748946647164,-637.93,0.00017808,2]
[363957571,1748946647173,-655.59,0.00017808,2]
[363957573,1748946647183,-738.86,0.00017808,2]
[363957575,1748946647193,-440.0,0.00017808,2]
[363957577,1748946647203,-440.0,0.00017808,2]
[363957579,1748946647212,-440.0,0.00017808,2]
[363957581,1748946647222,-921.6,0.00017808,2]
[363957583,1748946647231,-648.26,0.00017808,2]
[363957585,1748946647241,-812.28,0.00017808,2]
[363957587,1748946647250,-1085.16,0.00017808,2]
[363957589,1748946647261,-240.0,0.00017808,2]
[363957591,1748946647271,-264.32344527,0.00017808,2]
[363957593,1748946647280,-440.0,0.00017808,2]
[363957595,1748946647290,-440.0,0.00017808,2]
[363957597,1748946647299,-440.0,0.00017808,2]
[363957599,1748946647309,-440.0,0.00017808,2]
[363957601,1748946647318,-440.0,0.00017808,2]
[363957603,1748946647327,-440.0,0.00017808,2]
[363957605,1748946647337,-489.91,0.00017808,2]
[363957607,1748946647346,-350.72174057,0.00017808,2]
[363957609,1748946647356,-1793.76,0.00017808,2]
[363957611,1748946647366,-969.47,0.00017808,2]
[363957613,1748946647375,-440.0,0.00017808,2]
[363957615,1748946647384,-1694.57201785,0.000179,2]
[363957617,1748946647394,-420.0,0.00017962,2]
[363957619,1748946647403,-420.0,0.00017962,2]
[363957621,1748946647412,-500.0,0.00017968,2]
[363957623,1748946647421,-500.0,0.00017968,2]
[363957625,1748946647431,-500.0,0.00017968,2]
[363957627,1748946647441,-159.0,0.00017973,3]
[363957629,1748946647451,-501.88517194,0.0001798,2]
[363957631,1748946647460,-3296.40430688,0.00018,2]
[363957633,1748946647470,-10063.67448965,0.00018,2]
[363957635,1748946647480,-160.0,0.00018012,2]
[363957637,1748946647489,-212.86879254,0.00018012,2]
[363957639,1748946647499,-160.0,0.00018012,2]
[363957641,1748946647510,-160.0,0.00018012,2]
[363957643,1748946647521,-842.5625,0.00018012,2]
[363957645,1748946647530,-423.63107087,0.00018012,2]
[363957647,1748946647539,-160.0,0.00018012,2]
[363957648,1748946647550,-160.0,0.00018012,2]
[363957650,1748946647559,-160.0,0.00018012,2]
[363957652,1748946647569,-12670.76136593,0.00018012,2]
[363957654,1748946647578,-229.42821335,0.00018012,2]
[363957656,1748946647590,-879.83,0.00018081,2]
[363957658,1748946647601,-337.44258147,0.00018082,2]
[363957660,1748946647610,-430.0,0.00018082,2]
[363957662,1748946647619,-440.0,0.00018082,2]
[363957664,1748946647629,-440.0,0.00018082,2]
[363957666,1748946647638,-440.0,0.00018082,2]
[363957668,1748946647648,-440.0,0.00018082,2]
[363957670,1748946647657,-440.0,0.00018082,2]
[363957672,1748946647666,-440.0,0.00018082,2]
[363957674,1748946647677,-440.0,0.00018082,2]
[363957676,1748946647686,-440.0,0.00018082,2]
[363957678,1748946647695,-440.0,0.00018082,2]
[363957680,1748946647705,-212.5476667,0.00018082,2]
[363957682,1748946647714,-440.0,0.00018082,2]
[363957684,1748946647724,-440.0,0.00018082,2]
[363957686,1748946647734,-440.0,0.00018082,2]
[363957688,1748946647744,-15951.04,0.00018082,2]
[363957690,1748946647753,-440.0,0.00018082,2]
[363957692,1748946647762,-440.0,0.00018082,2]
[363957694,1748946647772,-1331.65,0.00018082,2]
[363957696,1748946647783,-440.0,0.00018082,2]
[363957698,1748946647794,-487.26,0.00018082,2]
[363957700,1748946647805,-1206.48,0.00018082,2]
[363957702,1748946647815,-440.0,0.00018082,2]
[363957704,1748946647824,-512.8,0.00018082,2]
[363957706,1748946647833,-4509.62,0.00018082,2]
[363957708,1748946647843,-440.0,0.00018082,2]
[363957710,1748946647852,-767.81,0.00018082,2]
[363957712,1748946647862,-1889.79,0.00018082,2]
[363957714,1748946647871,-2287.16,0.00018082,2]
[363957715,1748946647881,-1333.43,0.00018082,2]
[363957717,1748946647890,-2420.97,0.00018082,2]
[363957720,1748946647900,-1785.97,0.00018082,2]
[363957722,1748946647910,-490.58,0.00018082,2]
[363957723,1748946647920,-442.15,0.00018082,2]
[363957725,1748946647930,-484.31466656,0.00018082,2]
[363957727,1748946647940,-440.0,0.00018082,2]
[363957729,1748946647950,-440.0,0.00018082,2]
[363957731,1748946647959,-637.93,0.00018082,2]
[363957733,1748946647969,-655.59,0.00018082,2]
[363957735,1748946647979,-738.86,0.00018082,2]
[363957737,1748946647988,-440.0,0.00018082,2]
[363957739,1748946647997,-440.0,0.00018082,2]
[363957742,1748946648009,-440.0,0.00018082,2]
[363957743,1748946648019,-921.6,0.00018082,2]
[363957745,1748946648029,-648.26,0.00018082,2]